bitfinex/quotes_BTCUSD_20250903
["timestamp","ask_amount","ask_price","bid_price","bid_amount"]
[1756913650695,1.07831121,112260.0,112250.0,0.00014043]
[1756913650894,0.21696565,112260.0,112250.0,0.00014043]
[1756913651077,1.0805475,112260.0,112250.0,0.00014043]
[1756913651441,1.06396666,112260.0,112250.0,0.00014043]
[1756913651651,1.05504798,112260.0,112250.0,0.17831414]
[1756913651855,0.87689014,112260.0,112250.0,0.17831414]
[1756913652062,1.05504798,112260.0,112250.0,0.17931414]
[1756913652647,1.05504798,112260.0,112250.0,0.00114043]
[1756913652758,1.05504798,112260.0,112250.0,0.00214043]
[1756913653985,1.06415898,112260.0,112250.0,0.00214043]
[1756913654683,1.21855898,112260.0,112250.0,0.00214043]
[1756913657413,1.20928798,112260.0,112250.0,0.18031414]
[1756913657534,1.20099969,112260.0,112250.0,0.18031414]
[1756913658032,1.20099969,112260.0,112250.0,0.00114043]
[1756913658206,1.20928499,112260.0,112250.0,0.00114043]
[1756913658428,1.2097104,112260.0,112250.0,0.00114043]
[1756913658576,1.2097104,112260.0,112250.0,0.00014043]
[1756913658984,1.2097104,112260.0,112250.0,0.17831414]
[1756913659186,1.2097104,112260.0,112250.0,0.00014043]
[1756913659385,1.2097104,112260.0,112250.0,0.17831414]
[1756913659662,0.97750623,112260.0,112250.0,0.17831414]
[1756913660075,0.97750623,112260.0,112250.0,0.00014043]
[1756913665589,0.82326623,112260.0,112250.0,0.00014043]
[1756913665796,0.97718623,112260.0,112250.0,0.00014043]
[1756913668614,0.82326623,112260.0,112250.0,0.00014043]
[1756913668816,0.97702623,112260.0,112250.0,0.00014043]
[1756913671411,0.82326623,112260.0,112250.0,0.17831414]
[1756913671611,0.97714623,112260.0,112250.0,0.17831414]
[1756913672040,0.97714623,112260.0,112250.0,0.00014043]
[1756913672257,0.97706623,112260.0,112250.0,0.00014043]
[1756913673699,2.13227589,112260.0,112250.0,0.00014043]
[1756913673919,1.50089821,112260.0,112250.0,0.00014043]
[1756913674327,1.40898222,112260.0,112250.0,0.00014043]
[1756913675576,2.0635199,112260.0,112250.0,0.00014043]
[1756913675803,2.07181694,112260.0,112250.0,0.00014043]
[1756913677509,3.6680319,112260.0,112250.0,0.00014043]
[1756913677749,2.09313323,112260.0,112250.0,0.00014043]
[1756913677975,2.33868922,112260.0,112250.0,0.00014043]
[1756913678340,2.18504922,112260.0,112250.0,0.00014043]
[1756913678543,2.33864922,112260.0,112250.0,0.00014043]
[1756913680704,3.75990789,112260.0,112250.0,0.00014043]
[1756913680926,3.78527899,112260.0,112250.0,0.00014043]
[1756913684663,3.83999407,112260.0,112250.0,0.00014043]
[1756913684861,3.86386089,112260.0,112250.0,0.00014043]
[1756913685064,3.83771869,112260.0,112250.0,0.00014043]
[1756913685458,3.65554581,112260.0,112250.0,0.00014043]
[1756913685650,3.80914581,112260.0,112250.0,0.00014043]
[1756913685850,0.96666847,112260.0,112250.0,0.00014043]
[1756913686075,2.38792714,112260.0,112250.0,0.00014043]
[1756913686216,2.38792856,112260.0,112250.0,0.00014043]
[1756913686414,3.63168041,112260.0,112250.0,0.00014043]
[1756913686621,3.83796011,112260.0,112250.0,0.00014043]
[1756913686828,3.83996011,112260.0,112250.0,0.00014043]
[1756913687025,3.68912011,112260.0,112250.0,0.00014043]
[1756913687233,3.81450723,112260.0,112250.0,0.00014043]
[1756913687434,3.79108041,112260.0,112250.0,0.00014043]
[1756913691347,3.79096041,112260.0,112250.0,0.00014043]
[1756913691818,0.67406708,112260.0,112250.0,0.00119043]
[1756913692016,2.08136528,112260.0,112250.0,0.00014043]
[1756913692265,2.23616528,112260.0,112250.0,0.00014043]
[1756913692934,1.72995853,112260.0,112250.0,0.00119043]
[1756913693196,1.39439266,112260.0,112250.0,0.00119043]
[1756913693400,1.86814555,112260.0,112250.0,0.00119043]
[1756913693775,1.39439266,112260.0,112250.0,0.00119043]
[1756913694933,1.80015091,112300.0,112250.0,0.00119043]
[1756913694934,0.26401416,112310.0,112260.0,0.17815784]
[1756913695174,0.00486036,112320.0,112310.0,0.61807853]
[1756913695380,0.00486036,112320.0,112310.0,1.33613024]
[1756913695595,0.0002,112330.0,112320.0,0.63900149]
[1756913695806,0.0002,112330.0,112320.0,2.06026016]
[1756913696023,0.0002,112340.0,112330.0,0.61804682]
[1756913696237,0.0002,112340.0,112330.0,1.58217404]
[1756913696650,0.00066953,112340.0,112330.0,1.10842115]
[1756913696856,0.00066953,112340.0,112330.0,1.58217404]
[1756913697227,0.00066953,112340.0,112330.0,1.58517404]
[1756913697441,0.00066953,112340.0,112330.0,1.25286833]
[1756913698350,0.00066953,112340.0,112330.0,1.25279439]
[1756913698700,0.00066953,112340.0,112330.0,1.25879439]
[1756913698902,0.00066953,112340.0,112330.0,1.28327005]
[1756913699705,0.00066953,112340.0,112330.0,1.37518604]
[1756913700532,0.00066953,112340.0,112330.0,1.52978604]
[1756913701672,0.00066953,112340.0,112330.0,0.91458597]
[1756913701946,0.00066953,112340.0,112330.0,1.52978604]
[1756913702275,0.00066953,112340.0,112330.0,1.53335381]
[1756913702687,0.00066953,112340.0,112330.0,0.91815374]
[1756913702918,0.00066953,112340.0,112330.0,1.53335381]
[1756913704511,0.00066953,112340.0,112330.0,0.91815374]
[1756913704732,0.00066953,112340.0,112330.0,1.53335381]
[1756913707980,0.0002,112350.0,112340.0,1.23323104]
[1756913708202,0.0002,112350.0,112340.0,1.39362703]
[1756913708437,0.0002,112350.0,112340.0,1.41456585]
[1756913708644,0.0002,112350.0,112340.0,1.81456585]
[1756913709073,0.0002,112360.0,112350.0,0.63895395]
[1756913709288,0.0002,112360.0,112350.0,2.16543008]
[1756913709289,1e-08,112360.0,112350.0,2.16543008]
[1756913709517,0.0002,112380.0,112370.0,0.51798344]
[1756913709732,0.0002,112380.0,112370.0,1.4476595]
[1756913709941,0.0002,112380.0,112370.0,1.4976595]
[1756913710392,0.0002,112390.0,112370.0,1.41447832]
[1756913710607,0.0002,112390.0,112380.0,0.93508366]
[1756913710835,0.00322,112390.0,112380.0,1.13920366]
[1756913711059,0.0002,112390.0,112380.0,1.14791591]
[1756913711683,0.00531,112390.0,112380.0,0.52400359]
[1756913712116,0.00531,112390.0,112380.0,0.47462434]
[1756913712539,0.00531,112390.0,112380.0,0.31890434]
[1756913712747,0.00531,112390.0,112380.0,0.31990434]
[1756913712955,0.00531,112390.0,112380.0,0.47562434]
[1756913713167,0.0002,112390.0,112380.0,1.20267922]
[1756913713645,0.0002,112390.0,112380.0,0.58747915]
[1756913713854,0.00531,112390.0,112380.0,0.43175915]
[1756913714058,0.00531,112390.0,112380.0,0.43375915]
[1756913714262,0.00531,112390.0,112380.0,0.58943915]
[1756913714462,0.00531,112390.0,112380.0,1.23138628]
[1756913715282,0.0002,112390.0,112380.0,0.61618621]
[1756913715705,0.00531,112390.0,112380.0,1.23126628]
[1756913716164,0.00322,112390.0,112380.0,1.23126628]
[1756913716381,0.0002,112390.0,112380.0,1.23126628]
[1756913717053,0.00531,112390.0,112380.0,0.61598621]
[1756913717726,0.00531,112390.0,112380.0,0.57508947]
[1756913717727,0.18326177,112390.0,112380.0,0.57508947]
[1756913717941,0.18326177,112390.0,112380.0,0.102]
[1756913718161,0.82106184,112390.0,112380.0,0.102]
[1756913718798,0.82106184,112390.0,112380.0,0.1]
[1756913719225,0.20586177,112390.0,112380.0,0.102]
[1756913719852,0.20586177,112390.0,112380.0,0.1]
[1756913720076,0.02791,112390.0,112380.0,0.2789676]
[1756913720286,0.00531,112390.0,112380.0,0.2789676]
[1756913720730,0.00531,112390.0,112380.0,0.2799676]
[1756913720920,0.18326177,112390.0,112380.0,0.25744]
[1756913721592,0.18326177,112390.0,112380.0,0.4354076]
[1756913722593,0.0002,112390.0,112380.0,1.05060767]
[1756913722773,0.0002,112390.0,112380.0,1.23190248]
[1756913724446,0.0002,112390.0,112380.0,1.26362371]
[1756913725968,0.0002,112390.0,112380.0,1.30278025]
[1756913727771,0.0002,112390.0,112380.0,1.14734025]
[1756913727966,0.0002,112390.0,112380.0,1.30322025]
[1756913728562,0.0002,112390.0,112380.0,1.30318025]
[1756913729249,0.0002,112390.0,112380.0,1.14734025]
[1756913729456,0.00531,112390.0,112380.0,1.14734025]
[1756913729666,0.00531,112390.0,112380.0,1.30310025]
[1756913729900,0.00531,112390.0,112380.0,1.14734025]
[1756913730104,0.20586177,112390.0,112380.0,0.102]
[1756913730329,0.82106184,112390.0,112380.0,0.102]
[1756913730534,0.20586177,112390.0,112380.0,0.102]
[1756913731396,0.82106184,112390.0,112380.0,0.102]
[1756913731925,0.20586177,112390.0,112380.0,0.102]
[1756913732109,0.82106184,112390.0,112380.0,0.102]
[1756913733174,0.83765335,112390.0,112380.0,0.102]
[1756913735184,0.83765919,112390.0,112380.0,0.102]
[1756913735599,0.22245912,112390.0,112380.0,0.102]
[1756913735800,0.83765919,112390.0,112380.0,0.102]
[1756913737766,0.22245912,112390.0,112380.0,0.102]
[1756913737983,0.83765919,112390.0,112380.0,0.102]
[1756913739430,1.11902142,112390.0,112380.0,0.102]
[1756913740036,1.08425968,112390.0,112380.0,0.102]
[1756913741000,1.08425968,112390.0,112380.0,0.052]
[1756913741207,1.51617567,112390.0,112380.0,0.052]
[1756913741823,1.67121567,112390.0,112380.0,0.052]
[1756913742014,1.67121567,112390.0,112380.0,0.051]
[1756913742221,1.67122225,112390.0,112380.0,0.051]
[1756913742424,1.67222225,112390.0,112380.0,0.051]
[1756913742619,1.67222225,112390.0,112380.0,0.05]
[1756913742851,1.67210225,112390.0,112380.0,0.05]
[1756913743284,0.1779676,112380.0,112370.0,0.10014043]
[1756913743494,1.06440283,112380.0,112370.0,0.10014043]
[1756913743694,1.06162209,112380.0,112370.0,0.10014043]
[1756913743850,0.19982153,112380.0,112370.0,0.10014043]
[1756913744077,1.06162209,112380.0,112370.0,0.10014043]
[1756913744667,1.06162209,112380.0,112370.0,0.05014043]
[1756913744902,1.26835407,112380.0,112370.0,0.05014043]
[1756913745103,1.26835407,112380.0,112370.0,0.05214043]
[1756913745301,1.26835407,112380.0,112370.0,0.00214043]
[1756913745479,1.26835407,112380.0,112370.0,0.05214043]
[1756913745699,1.26835407,112380.0,112370.0,0.05014043]
[1756913745925,1.60835407,112380.0,112370.0,0.05014043]
[1756913746272,1.60935407,112380.0,112370.0,0.05014043]
[1756913746847,1.51743808,112380.0,112370.0,0.05014043]
[1756913747049,1.67231808,112380.0,112370.0,0.05014043]
[1756913747866,1.67131808,112380.0,112370.0,0.05014043]
[1756913748243,1.67331808,112380.0,112370.0,0.05014043]
[1756913748424,1.67431808,112380.0,112370.0,0.05014043]
[1756913749177,1.51943808,112380.0,112370.0,0.05014043]
[1756913749375,1.67419808,112380.0,112370.0,0.05014043]
[1756913750123,1.67419808,112380.0,112370.0,0.00014043]
[1756913750338,1.67419808,112380.0,112370.0,0.05014043]
[1756913750534,1.67419808,112380.0,112370.0,0.00014043]
[1756913750735,0.90431351,112380.0,112370.0,0.05014043]
[1756913750970,1.61135407,112380.0,112370.0,0.05014043]
[1756913751651,1.67427808,112380.0,112370.0,0.05014043]
[1756913751851,1.51943808,112380.0,112370.0,0.05014043]
[1756913752051,1.65137808,112380.0,112370.0,0.10014043]
[1756913752261,1.49653808,112380.0,112370.0,0.10014043]
[1756913752469,0.003,112380.0,112370.0,0.27812387]
[1756913752636,1.0476889,112380.0,112370.0,0.27812387]
[1756913752863,1.04801816,112380.0,112370.0,0.27812387]
[1756913753022,1.04276816,112380.0,112370.0,0.27812387]
[1756913753429,1.04701816,112380.0,112370.0,0.27812387]
[1756913753643,1.04487816,112380.0,112370.0,0.10014043]
[1756913753885,1.04587816,112380.0,112370.0,0.10014043]
[1756913754035,1.04601816,112380.0,112370.0,0.10014043]
[1756913754254,1.04601816,112380.0,112370.0,0.27812387]
[1756913754458,1.04701816,112380.0,112370.0,0.27812387]
[1756913754668,1.04501816,112380.0,112370.0,0.10014043]
[1756913755295,1.04601816,112380.0,112370.0,0.10014043]
[1756913757685,1.04601816,112380.0,112370.0,0.27812387]
[1756913758610,1.20065816,112380.0,112370.0,0.10014043]
[1756913759013,1.04601816,112380.0,112370.0,0.10014043]
[1756913759214,1.20053816,112380.0,112370.0,0.10014043]
[1756913760705,1.04601816,112380.0,112370.0,0.10014043]
[1756913760913,1.20045816,112380.0,112370.0,0.10014043]
[1756913761110,1.04601816,112380.0,112370.0,0.10014043]
[1756913761515,1.40719014,112380.0,112370.0,0.10014043]
[1756913761997,1.74719014,112380.0,112370.0,0.00014043]
[1756913762207,1.74719014,112380.0,112370.0,0.05014043]
[1756913762410,1.74719014,112380.0,112370.0,0.00014043]
[1756913763552,1.60938737,112380.0,112370.0,0.00014043]
[1756913763765,1.76370737,112380.0,112370.0,0.00014043]
[1756913765025,1.60938737,112380.0,112370.0,0.00014043]
[1756913765254,1.65519415,112380.0,112370.0,0.00014043]
[1756913765475,1.50083415,112380.0,112370.0,0.00014043]
[1756913765697,1.63233415,112380.0,112370.0,0.05014043]
[1756913765927,1.72425014,112380.0,112370.0,0.05014043]
[1756913766373,1.63233415,112380.0,112370.0,0.10014043]
[1756913766859,1.47793415,112380.0,112370.0,0.10014043]
[1756913767111,1.20037816,112380.0,112370.0,0.10014043]
[1756913767335,1.04076816,112380.0,112370.0,0.10014043]
[1756913767557,1.19512816,112380.0,112370.0,0.10014043]
[1756913767778,1.20037816,112380.0,112370.0,0.10014043]
[1756913772950,1.29229415,112380.0,112370.0,0.10014043]
[1756913775539,1.13793415,112380.0,112370.0,0.10014043]
[1756913775757,1.29197415,112380.0,112370.0,0.10014043]
[1756913775989,1.13793415,112380.0,112370.0,0.10014043]
[1756913776187,0.3360776,112380.0,112370.0,0.10014043]
[1756913776416,1.19787816,112380.0,112370.0,0.10014043]
[1756913776650,0.3329276,112380.0,112370.0,0.10014043]
[1756913776892,0.86280056,112380.0,112370.0,0.27812387]
[1756913777172,0.001,112380.0,112370.0,0.27812387]
[1756913777403,0.001,112380.0,112370.0,0.43208387]
[1756913778549,0.001,112380.0,112370.0,0.27812387]
[1756913778778,0.001,112380.0,112370.0,0.43208387]
[1756913779000,0.1789676,112380.0,112370.0,0.43208387]
[1756913779184,0.001,112380.0,112370.0,0.43208387]
[1756913779545,0.001,112380.0,112370.0,0.27812387]
[1756913779787,0.001,112380.0,112370.0,0.43196387]
[1756913779983,1.04591816,112380.0,112370.0,0.10014043]
[1756913782232,0.1841176,112380.0,112370.0,0.10014043]
[1756913782440,1.04591816,112380.0,112370.0,0.10014043]
[1756913782633,1.04591816,112380.0,112370.0,0.27812387]
[1756913782839,1.04591816,112380.0,112370.0,0.10014043]
[1756913783906,1.21660558,112380.0,112370.0,0.05014043]
[1756913784104,1.57957558,112380.0,112370.0,0.00014043]
[1756913784331,1.57957558,112380.0,112370.0,0.05014043]
[1756913784964,0.63900359,112380.0,112370.0,0.05014043]
[1756913785119,0.63900359,112380.0,112370.0,0.10014043]
[1756913785319,1.63171415,112380.0,112370.0,0.10014043]
[1756913786834,0.3380376,112380.0,112370.0,0.10014043]
[1756913787041,0.3359876,112380.0,112370.0,0.10014043]
[1756913787256,0.3328876,112380.0,112370.0,0.10014043]
[1756913787480,1.19468816,112380.0,112370.0,0.10014043]
[1756913787656,1.19983816,112380.0,112370.0,0.10014043]
[1756913788797,1.04591816,112380.0,112370.0,0.10014043]
[1756913789024,1.19975816,112380.0,112370.0,0.10014043]
[1756913789251,0.001,112380.0,112370.0,0.27812387]
[1756913789999,0.001,112380.0,112370.0,0.43192387]
[1756913790672,0.001,112380.0,112370.0,0.43292387]
[1756913790904,1.19375246,112390.0,112380.0,0.1779676]
[1756913791154,1.19367233,112390.0,112380.0,0.2779676]
[1756913791402,0.0002,112390.0,112380.0,0.2779676]
[1756913791621,0.32587732,112400.0,112390.0,0.17795177]
[1756913792259,0.32587732,112400.0,112390.0,0.22795177]
[1756913792260,1.19077788,112400.0,112390.0,0.22795177]
[1756913792687,0.32897732,112400.0,112390.0,0.22795177]
[1756913792929,1.19077788,112400.0,112390.0,0.22795177]
[1756913793408,1.19282788,112400.0,112390.0,0.05]
[1756913794467,1.19382788,112400.0,112390.0,0.05]
[1756913795491,1.19582788,112400.0,112390.0,0.05]
[1756913796311,1.19582788,112400.0,112390.0,0.1]
[1756913796460,1.31071387,112400.0,112390.0,0.1]
[1756913796668,1.40262986,112400.0,112390.0,0.1]
[1756913796893,1.74262986,112400.0,112390.0,0.05]
[1756913797092,1.74262986,112400.0,112390.0,0.1]
[1756913797877,0.78891331,112400.0,112390.0,0.1]
[1756913798081,1.65071387,112400.0,112390.0,0.1]
[1756913798898,1.65063387,112400.0,112390.0,0.1]
[1756913799653,1.40395813,112400.0,112390.0,0.1]
[1756913799936,0.78883331,112400.0,112390.0,0.1]
[1756913800165,1.40395813,112400.0,112390.0,0.1]
[1756913801424,1.25035813,112400.0,112390.0,0.1]
[1756913801636,0.17829732,112400.0,112390.0,0.27795177]
[1756913801844,0.79310238,112400.0,112390.0,0.1]
[1756913802053,0.94376214,112400.0,112390.0,0.27795177]
[1756913802236,0.94669214,112400.0,112390.0,0.27795177]
[1756913802431,0.94873214,112400.0,112390.0,0.1]
[1756913804023,0.33360732,112400.0,112390.0,0.1]
[1756913804326,0.94873214,112400.0,112390.0,0.1]
[1756913805934,0.33360732,112400.0,112390.0,0.1]
[1756913806087,0.94873214,112400.0,112390.0,0.1]
[1756913808503,0.79529214,112400.0,112390.0,0.1]
[1756913808921,1.56381696,112400.0,112390.0,0.1]
[1756913809130,1.77214894,112400.0,112390.0,0.1]
[1756913809327,2.02023295,112400.0,112390.0,0.1]
[1756913810335,1.40510813,112400.0,112390.0,0.1]
[1756913811339,2.02023295,112400.0,112390.0,0.1]
[1756913814978,1.40502813,112400.0,112390.0,0.1]
[1756913815190,0.63658331,112400.0,112390.0,0.1]
[1756913815398,1.28352214,112400.0,112390.0,0.1]
[1756913815854,1.28645214,112400.0,112390.0,0.1]
[1756913816078,1.28849214,112400.0,112390.0,0.1]
[1756913816669,1.28749214,112400.0,112390.0,0.1]
[1756913816886,0.94048214,112400.0,112390.0,0.27795177]
[1756913817083,0.94645214,112400.0,112390.0,0.1]
[1756913817485,0.94641214,112400.0,112390.0,0.1]
[1756913817903,0.001,112400.0,112390.0,0.28120324]
[1756913818108,0.001,112400.0,112390.0,0.39405805]
[1756913818488,0.17810657,112420.0,112410.0,0.22792011]
[1756913818651,0.79323139,112420.0,112410.0,0.22792011]
[1756913819051,0.79323139,112420.0,112410.0,0.1]
[1756913819253,0.79323139,112420.0,112410.0,0.27792011]
[1756913819498,0.94635139,112420.0,112410.0,0.27792011]
[1756913819698,0.94635139,112420.0,112410.0,0.10014043]
[1756913819904,0.95232139,112420.0,112410.0,0.10014043]
[1756913820872,1.08887106,112420.0,112410.0,0.05014043]
[1756913821112,1.42587106,112420.0,112410.0,0.05014043]
[1756913821327,1.42587106,112420.0,112410.0,0.10014043]
[1756913821540,1.42487106,112420.0,112410.0,0.10014043]
[1756913821754,1.42687106,112420.0,112410.0,0.10014043]
[1756913822168,1.42787106,112420.0,112410.0,0.05014043]
[1756913822396,1.42787106,112420.0,112410.0,0.00014043]
[1756913824444,1.42771106,112420.0,112410.0,0.00014043]
[1756913825076,1.41057738,112420.0,112410.0,0.00014043]
[1756913826782,1.41053738,112420.0,112410.0,0.00014043]
[1756913831417,1.25761738,112420.0,112410.0,0.00014043]
[1756913831875,1.38595738,112420.0,112410.0,0.05014043]
[1756913832359,1.23311738,112420.0,112410.0,0.05014043]
[1756913832607,1.38595738,112420.0,112410.0,0.05014043]
[1756913833063,1.47169298,112420.0,112410.0,0.00014043]
[1756913833291,1.31885298,112420.0,112410.0,0.00014043]
[1756913833513,1.54009298,112420.0,112410.0,0.00014043]
[1756913834037,1.38725298,112420.0,112410.0,0.00014043]
[1756913834263,1.54009298,112420.0,112410.0,0.00014043]
[1756913834959,1.38725298,112420.0,112410.0,0.00014043]
[1756913835204,1.54009298,112420.0,112410.0,0.00014043]
[1756913840867,1.55675627,112420.0,112410.0,0.00014043]
[1756913842370,1.56508934,112420.0,112410.0,0.00014043]
[1756913842906,1.54009298,112420.0,112410.0,0.00014043]
[1756913843330,1.55676397,112420.0,112410.0,0.00014043]
[1756913844289,0.94163915,112420.0,112410.0,0.00014043]
[1756913844501,0.87875355,112420.0,112410.0,0.00014043]
[1756913844729,1.34937531,112420.0,112410.0,0.00014043]
[1756913844962,1.45435738,112420.0,112410.0,0.00014043]
[1756913845456,2.25607772,112420.0,112410.0,0.00014043]
[1756913846223,0.68142256,112420.0,112410.0,0.05014043]
[1756913846440,0.83426256,112420.0,112410.0,0.05014043]
[1756913846654,1.778826,112420.0,112410.0,0.10014043]
[1756913846853,0.83426256,112420.0,112410.0,0.10014043]
[1756913847094,1.778826,112420.0,112410.0,0.10014043]
[1756913847719,1.557586,112420.0,112410.0,0.10014043]
[1756913847919,1.710426,112420.0,112410.0,0.10014043]
[1756913848126,1.80760199,112420.0,112410.0,0.10014043]
[1756913848320,2.12704371,112420.0,112410.0,0.10014043]
[1756913848520,0.86303855,112420.0,112410.0,0.10014043]
[1756913848737,2.12704371,112420.0,112410.0,0.10014043]
[1756913848954,2.27988371,112420.0,112410.0,0.10014043]
[1756913849565,0.77112256,112420.0,112410.0,0.10014043]
[1756913849778,1.38603113,112420.0,112410.0,0.10014043]
[1756913850640,1.38400113,112420.0,112410.0,0.10014043]
[1756913850856,1.38603113,112420.0,112410.0,0.10014043]
[1756913851292,0.76586256,112420.0,112410.0,0.10014043]
[1756913851505,1.38603113,112420.0,112410.0,0.10014043]
[1756913851721,0.77112256,112420.0,112410.0,0.10014043]
[1756913851916,1.4063285,112420.0,112410.0,0.05014043]
[1756913852166,1.43134788,112420.0,112410.0,0.05014043]
[1756913854176,1.45419788,112420.0,112410.0,0.05014043]
[1756913854601,1.45419795,112420.0,112410.0,0.05014043]
[1756913855403,1.49396072,112420.0,112410.0,0.05014043]
[1756913856449,1.50230062,112420.0,112410.0,0.05014043]
[1756913857579,0.88739206,112420.0,112410.0,0.05014043]
[1756913857833,1.49396072,112420.0,112410.0,0.05014043]
[1756913858029,1.50230092,112420.0,112410.0,0.05014043]
[1756913859439,1.49396099,112420.0,112410.0,0.05014043]
[1756913860103,1.47107099,112420.0,112410.0,0.05014043]
[1756913860564,1.47941149,112420.0,112410.0,0.05014043]
[1756913860842,1.47107099,112420.0,112410.0,0.05014043]
[1756913861383,1.31827099,112420.0,112410.0,0.05014043]
[1756913861639,1.71758808,112420.0,112410.0,0.05014043]
[1756913861868,1.64392808,112420.0,112410.0,0.10014043]
[1756913862727,1.64886808,112420.0,112410.0,0.10014043]
[1756913862956,0.78744242,112420.0,112410.0,0.10014043]
[1756913863157,1.64886808,112420.0,112410.0,0.10014043]
[1756913863501,1.49606808,112420.0,112410.0,0.10014043]
[1756913863765,1.64886808,112420.0,112410.0,0.10014043]
[1756913863972,1.73778687,112420.0,112410.0,0.10014043]
[1756913864787,1.58498687,112420.0,112410.0,0.10014043]
[1756913864967,1.73778687,112420.0,112410.0,0.05014043]
[1756913865164,1.76257687,112420.0,112410.0,0.00014043]
[1756913865370,1.77091979,112420.0,112410.0,0.05014043]
[1756913865991,1.83931979,112420.0,112410.0,0.05014043]
[1756913866638,1.83931979,112420.0,112410.0,0.00014043]
[1756913867556,1.85854496,112420.0,112410.0,0.00014043]
[1756913868209,1.85854496,112420.0,112410.0,0.05014043]
[1756913868428,1.85854496,112420.0,112380.0,0.1]
[1756913868429,0.51795177,112390.0,112380.0,0.1]
[1756913868644,0.1779676,112380.0,112370.0,0.17354631]
[1756913868866,1.28884999,112380.0,112370.0,0.17354631]
[1756913869073,1.28904925,112380.0,112370.0,0.17354631]
[1756913870168,0.27940819,112380.0,112370.0,0.101]
[1756913870372,1.29363385,112380.0,112370.0,0.101]
[1756913871291,1.29363385,112380.0,112370.0,0.102]
[1756913871847,1.31278242,112380.0,112370.0,0.102]
[1756913873109,1.31278242,112380.0,112370.0,0.002]
[1756913873267,1.31278242,112380.0,112370.0,0.052]
[1756913873468,1.65278242,112380.0,112370.0,0.052]
[1756913873793,1.65278242,112380.0,112370.0,0.051]
[1756913873998,1.65278242,112380.0,112370.0,0.05]
[1756913874379,1.65278242,112380.0,112370.0,0.001]
[1756913874786,1.67757242,112380.0,112370.0,0.001]
[1756913874982,1.67757242,112380.0,112370.0,0.051]
[1756913876269,1.66474742,112380.0,112370.0,0.051]
[1756913876475,0.17798344,112370.0,112360.0,0.1]
[1756913876627,1.29184608,112370.0,112360.0,0.1]
[1756913876827,1.28906509,112370.0,112360.0,0.1]
[1756913877736,1.29006509,112370.0,112360.0,0.1]
[1756913879428,1.13726509,112370.0,112360.0,0.1]
[1756913879749,1.29006509,112370.0,112360.0,0.1]
[1756913880403,1.13726509,112370.0,112360.0,0.1]
[1756913880624,1.29006509,112370.0,112360.0,0.1]
[1756913884055,1.38198108,112370.0,112360.0,0.05]
[1756913884666,1.29006509,112370.0,112360.0,0.05]
[1756913885804,1.13726509,112370.0,112360.0,0.05]
[1756913886001,1.29002509,112370.0,112360.0,0.05]
[1756913886431,1.28806509,112370.0,112360.0,0.05]
[1756913886815,1.29002509,112370.0,112360.0,0.05]
[1756913887260,0.42859943,112370.0,112360.0,0.05]
[1756913887494,1.29002509,112370.0,112360.0,0.05]
[1756913887704,0.42859943,112370.0,112360.0,0.05]
[1756913887905,1.29002509,112370.0,112360.0,0.05]
[1756913888109,1.38194108,112370.0,112360.0,0.05]
[1756913889028,1.29002509,112370.0,112360.0,0.05]
[1756913890067,1.13726509,112370.0,112360.0,0.1]
[1756913890271,0.42365943,112370.0,112360.0,0.1]
[1756913890692,0.17898344,112370.0,112360.0,0.27799928]
[1756913890913,0.33174344,112370.0,112360.0,0.27799928]
[1756913892109,0.17898344,112370.0,112360.0,0.27799928]
[1756913892311,0.18176443,112370.0,112360.0,0.27799928]
[1756913893123,0.33452443,112370.0,112360.0,0.1]
[1756913893320,0.33174344,112370.0,112360.0,0.1]
[1756913893537,0.9617869,112370.0,112360.0,0.1]
[1756913893736,0.9617869,112370.0,112360.0,0.27799928]
[1756913894088,0.9617869,112370.0,112360.0,0.1]
[1756913894687,0.9617869,112370.0,112360.0,0.12675737]
[1756913895550,0.33174344,112370.0,112360.0,0.12675737]
[1756913895744,0.9617869,112370.0,112360.0,0.12675737]
[1756913896179,0.9648869,112370.0,112360.0,0.12675737]
[1756913896332,0.9617869,112370.0,112360.0,0.12675737]
[1756913896768,0.17898344,112370.0,112360.0,0.30475665]
[1756913896971,0.001,112370.0,112360.0,0.30475665]
[1756913897199,0.18176443,112370.0,112360.0,0.30475665]
[1756913898532,0.81180789,112370.0,112360.0,0.12675737]
[1756913898755,0.8090269,112370.0,112360.0,0.12675737]
[1756913899157,0.8121269,112370.0,112360.0,0.12675737]
[1756913899587,0.8142469,112370.0,112360.0,0.12675737]
[1756913900535,0.8142469,112370.0,112360.0,0.05]
[1756913900744,0.8142469,112370.0,112360.0,0.1]
[1756913902358,0.8142469,112370.0,112360.0,0.27799928]
[1756913902359,0.8121269,112370.0,112360.0,0.27799928]
[1756913902576,0.18208344,112370.0,112360.0,0.30475665]
[1756913903169,0.001,112370.0,112360.0,0.30475665]
[1756913903370,0.001,112370.0,112360.0,0.47845547]
[1756913903610,0.001,112370.0,112360.0,1.10849893]
[1756913903830,0.001,112370.0,112360.0,1.20041492]
[1756913904475,0.001,112370.0,112360.0,0.57037146]
[1756913904685,0.001,112370.0,112360.0,0.41761146]
[1756913904898,0.18208344,112370.0,112360.0,0.47845547]
[1756913905102,0.001,112370.0,112360.0,0.47845547]
[1756913907829,0.18208344,112370.0,112360.0,0.47845547]
[1756913908048,0.17898344,112370.0,112360.0,0.32569547]
[1756913908267,0.18208344,112370.0,112360.0,0.47841547]
[1756913908747,0.001,112370.0,112360.0,0.47841547]
[1756913909352,0.17898344,112370.0,112360.0,0.32569547]
[1756913909549,0.18208344,112370.0,112360.0,0.47841547]
[1756913909762,0.17898344,112370.0,112360.0,0.47841547]
[1756913909958,0.17898344,112370.0,112360.0,0.32569547]
[1756913910183,0.18420344,112370.0,112360.0,0.47841547]
[1756913910707,0.18420344,112370.0,112360.0,0.30041619]
[1756913910708,0.8142469,112370.0,112360.0,0.30041619]
[1756913911044,0.9669669,112370.0,112360.0,0.14769619]
[1756913911249,0.9669669,112370.0,112360.0,0.12675737]
[1756913911497,0.9669669,112370.0,112360.0,0.1]
[1756913911957,0.33692344,112370.0,112360.0,0.1]
[1756913912163,0.9669669,112370.0,112360.0,0.1]
[1756913912578,1.08341289,112370.0,112360.0,0.1]
[1756913914313,1.15335886,112370.0,112360.0,0.1]
[1756913914562,1.08341289,112370.0,112360.0,0.1]
[1756913915472,0.45336943,112370.0,112360.0,0.1]
[1756913915887,1.08341289,112370.0,112360.0,0.1]
[1756913921620,1.39865861,112370.0,112360.0,0.1]
[1756913922075,1.4905746,112370.0,112360.0,0.1]
[1756913923239,1.4905746,112370.0,112360.0,0.05]
[1756913923733,1.4905346,112370.0,112360.0,0.05]
[1756913925671,1.24593861,112370.0,112360.0,0.05]